bitfinex/quotes_BTCUSD_20240905
["timestamp","ask_amount","ask_price","bid_price","bid_amount"]
[1725529890518,0.57281194,56897.0,56896.0,0.23975856]
[1725529890988,0.57281194,56897.0,56896.0,0.76703556]
[1725529891223,0.35949777,56897.0,56896.0,0.76703556]
[1725529891683,0.35949777,56897.0,56896.0,0.81955485]
[1725529891915,0.35949777,56897.0,56896.0,0.46803685]
[1725529892146,0.35949777,56897.0,56896.0,1.34658381]
[1725529892375,0.35949777,56897.0,56896.0,1.29406452]
[1725529893596,0.37105879,56897.0,56896.0,1.29406452]
[1725529893838,0.37105879,56897.0,56896.0,0.94254652]
[1725529894762,0.37105879,56897.0,56896.0,0.96609533]
[1725529895402,0.56635879,56897.0,56896.0,0.26330737]
[1725529897238,0.56615879,56897.0,56896.0,0.26330737]
[1725529899984,0.56615879,56897.0,56896.0,0.26493737]
[1725529901810,0.56615879,56897.0,56896.0,0.25493737]
[1725529902296,0.56615879,56897.0,56896.0,0.24493737]
[1725529902765,0.56615879,56897.0,56896.0,0.25493737]
[1725529903983,0.56615879,56897.0,56896.0,0.26493737]
[1725529905479,0.56615879,56897.0,56896.0,0.5719574]
[1725529906664,0.56615879,56897.0,56896.0,0.44069637]
[1725529907142,0.56615879,56897.0,56896.0,0.5719574]
[1725529907638,0.56615879,56897.0,56896.0,0.9234754]
[1725529907868,0.56615879,56897.0,56896.0,0.79221437]
[1725529908090,0.56615879,56897.0,56896.0,0.44069637]
[1725529909077,0.56615879,56897.0,56896.0,0.79221437]
[1725529909566,0.01564638,56897.0,56896.0,1.31924333]
[1725529909795,0.01564638,56897.0,56896.0,1.67076133]
[1725529911857,0.01564638,56897.0,56896.0,1.31924333]
[1725529912302,0.01697309,56897.0,56896.0,1.31924333]
[1725529913397,0.01657309,56897.0,56896.0,1.31924333]
[1725529919153,0.01657309,56897.0,56896.0,1.47740373]
[1725529919387,0.01657309,56897.0,56896.0,1.47739887]
[1725529919594,0.01657309,56897.0,56896.0,1.31924333]
[1725529922903,0.61197309,56897.0,56896.0,0.44069637]
[1725529923371,0.61197309,56897.0,56896.0,0.25493737]
[1725529923583,0.61197309,56897.0,56896.0,0.48293737]
[1725529923801,0.21508405,56897.0,56895.0,0.00163]
[1725529924023,1.01249683,56896.0,56895.0,0.00163]
[1725529924489,1.02818897,56896.0,56895.0,0.00163]
[1725529924771,0.45338897,56896.0,56893.0,0.001632]
[1725529925191,0.5838,56894.0,56893.0,0.001632]
[1725529925412,0.78231096,56894.0,56893.0,0.001632]
[1725529925635,0.78231096,56894.0,56893.0,0.025092]
[1725529926511,0.78231096,56894.0,56893.0,0.030092]
[1725529927435,0.78331096,56894.0,56893.0,0.036092]
[1725529928105,0.78788318,56894.0,56893.0,0.036092]
[1725529928348,0.58937222,56894.0,56893.0,0.036092]
[1725529928807,0.54976858,56894.0,56893.0,0.17910515]
[1725529929037,0.54976858,56894.0,56893.0,0.27910515]
[1725529929261,0.47276127,56894.0,56893.0,0.31210822]
[1725529929701,0.41675615,56894.0,56893.0,0.30610822]
[1725529929930,0.41675615,56894.0,56893.0,0.30110822]
[1725529930166,0.31874886,56894.0,56893.0,0.30610822]
[1725529930381,0.31874886,56894.0,56893.0,0.31010822]
[1725529930595,0.31774886,56894.0,56893.0,0.30110822]
[1725529930820,0.31874886,56894.0,56893.0,0.31510822]
[1725529931041,0.19873863,56894.0,56893.0,0.31510822]
[1725529931919,0.19873863,56894.0,56893.0,0.49287622]
[1725529932172,0.19873863,56894.0,56893.0,0.45987315]
[1725529932390,0.19873863,56894.0,56893.0,1.20594677]
[1725529932883,0.19873863,56894.0,56893.0,0.85440977]
[1725529933117,0.05474679,56894.0,56893.0,0.84840977]
[1725529933340,0.05474679,56894.0,56893.0,0.85640977]
[1725529933565,0.06582161,56894.0,56893.0,0.85640977]
[1725529933775,0.06482161,56894.0,56893.0,0.84840977]
[1725529933995,3.40123075,56895.0,56894.0,0.527295]
[1725529934213,3.40123075,56895.0,56894.0,0.68375462]
[1725529934692,3.40123075,56895.0,56894.0,0.82876777]
[1725529935098,3.32423719,56895.0,56894.0,0.82876777]
[1725529936195,3.32423719,56895.0,56894.0,0.30747277]
[1725529936421,3.51803719,56895.0,56894.0,0.51445962]
[1725529936673,3.51803719,56895.0,56894.0,0.52145962]
[1725529937166,3.92303719,56895.0,56894.0,0.51445962]
[1725529937410,3.92303719,56895.0,56894.0,0.51345962]
[1725529938142,3.92303719,56895.0,56894.0,0.51345927]
[1725529938378,3.92303719,56895.0,56894.0,0.52045927]
[1725529938869,3.92303719,56895.0,56894.0,0.48746]
[1725529939104,3.86803861,56895.0,56894.0,0.52045916]
[1725529939587,3.75112461,56895.0,56894.0,0.50645916]
[1725529939884,3.75112461,56895.0,56894.0,0.51445916]
[1725529940125,3.65212816,56895.0,56894.0,0.52245916]
[1725529940841,3.65212816,56895.0,56894.0,0.48946]
[1725529941516,3.65212816,56895.0,56894.0,0.52246229]
[1725529941517,3.50911823,56895.0,56894.0,0.52246229]
[1725529941754,3.51850149,56895.0,56894.0,0.52246229]
[1725529942885,3.44149628,56895.0,56894.0,0.55546452]
[1725529943123,3.44149628,56895.0,56894.0,0.55546451]
[1725529943345,3.44149628,56895.0,56894.0,0.52246222]
[1725529943793,3.20809468,56895.0,56894.0,1.04975722]
[1725529944015,2.80309468,56895.0,56894.0,1.41128722]
[1725529944234,2.80309468,56895.0,56894.0,1.81743126]
[1725529944475,2.80309468,56895.0,56894.0,1.76481332]
[1725529946071,2.80309468,56895.0,56894.0,1.45789545]
[1725529946314,2.80309468,56895.0,56894.0,1.48239464]
[1725529946566,2.80309468,56895.0,56894.0,1.42178251]
[1725529946803,2.80309468,56895.0,56894.0,1.42978251]
[1725529947020,2.80309468,56895.0,56894.0,1.78131251]
[1725529947271,2.68210129,56895.0,56894.0,1.83392309]
[1725529947538,2.68210129,56895.0,56894.0,1.731815]
[1725529947778,2.68210129,56895.0,56894.0,1.78131221]
[1725529948259,2.68210129,56895.0,56894.0,1.86022887]
[1725529948500,2.68210129,56895.0,56894.0,1.80294221]
[1725529948724,2.68291629,56895.0,56894.0,1.80294221]
[1725529948961,2.60592973,56895.0,56894.0,1.80294221]
[1725529949201,2.60592973,56895.0,56894.0,1.78694221]
[1725529949435,2.60592973,56895.0,56894.0,2.48535086]
[1725529949695,2.60592973,56895.0,56894.0,2.37214221]
[1725529949929,2.60725921,56895.0,56894.0,2.54765317]
[1725529950192,2.50827906,56895.0,56894.0,2.54765317]
[1725529950415,2.50827906,56895.0,56894.0,2.92636681]
[1725529951346,2.50827906,56895.0,56894.0,2.30028094]
[1725529952747,2.50827906,56895.0,56894.0,2.53946681]
[1725529952986,2.50827906,56895.0,56894.0,2.40793904]
[1725529953457,2.37631119,56895.0,56894.0,2.75946904]
[1725529953922,1.26166548,56895.0,56894.0,3.06150183]
[1725529954141,1.26166548,56895.0,56894.0,3.11098737]
[1725529954826,1.23766548,56895.0,56894.0,3.11098737]
[1725529955049,1.29154559,56895.0,56894.0,3.06150183]
[1725529955316,1.29154559,56895.0,56894.0,3.04550183]
[1725529955769,1.29154559,56895.0,56894.0,3.06150183]
[1725529955996,1.29154559,56895.0,56894.0,3.05350183]
[1725529956892,1.29154559,56895.0,56894.0,3.06150183]
[1725529957117,1.23766548,56895.0,56894.0,2.60220736]
[1725529957368,1.24866214,56895.0,56894.0,2.47078596]
[1725529957570,1.26515713,56895.0,56894.0,2.47078596]
[1725529957830,1.29154911,56895.0,56894.0,2.47078596]
[1725529958023,1.29154911,56895.0,56894.0,2.57592964]
[1725529958240,1.29154911,56895.0,56894.0,2.47078596]
[1725529958480,1.29154911,56895.0,56894.0,2.46278596]
[1725529958730,1.25319271,56895.0,56894.0,2.80711551]
[1725529958960,1.25319271,56895.0,56894.0,2.76752584]
[1725529959434,1.25319271,56895.0,56894.0,2.77552584]
[1725529959658,1.25319271,56895.0,56894.0,2.78352584]
[1725529959878,1.25319271,56895.0,56894.0,2.67838216]
[1725529961339,1.23529271,56895.0,56894.0,2.67838216]
[1725529961575,1.23529271,56895.0,56894.0,2.43919629]
[1725529962478,1.23529271,56895.0,56894.0,2.54431853]
[1725529963163,1.23529271,56895.0,56894.0,2.19278853]
[1725529963391,1.42369271,56895.0,56894.0,1.01879533]
[1725529963645,1.42369271,56895.0,56894.0,0.99879533]
[1725529963646,1.42370016,56895.0,56894.0,0.99879533]
[1725529963907,1.82030016,56895.0,56894.0,0.40909]
[1725529964135,1.82030016,56895.0,56894.0,0.42909]
[1725529964356,1.82030016,56895.0,56894.0,0.604855]
[1725529964577,1.82030016,56895.0,56894.0,0.606855]
[1725529965015,1.82030016,56895.0,56894.0,0.706855]
[1725529965261,1.82030016,56895.0,56894.0,0.50909]
[1725529965912,1.82030016,56895.0,56894.0,0.50109]
[1725529966378,1.82030016,56895.0,56894.0,0.50909]
[1725529966629,1.82030016,56895.0,56894.0,0.49309]
[1725529966874,1.76640548,56895.0,56894.0,0.49309]
[1725529967100,1.82030454,56895.0,56894.0,0.50109]
[1725529967324,1.58229664,56895.0,56894.0,0.49509]
[1725529967547,1.58229664,56895.0,56894.0,0.50309]
[1725529967772,1.58229664,56895.0,56894.0,0.50109]
[1725529968438,1.58229664,56895.0,56894.0,0.49309]
[1725529968655,1.58229664,56895.0,56894.0,0.50109]
[1725529968874,1.58229664,56895.0,56894.0,0.50309]
[1725529969306,1.58229664,56895.0,56894.0,0.50109]
[1725529970195,1.52839758,56895.0,56894.0,0.50109]
[1725529970425,1.58229827,56895.0,56894.0,0.50109]
[1725529970898,1.58229827,56895.0,56894.0,0.49309]
[1725529971336,1.58229827,56895.0,56894.0,0.48509]
[1725529971780,1.58229827,56895.0,56894.0,0.49309]
[1725529973159,1.58229827,56895.0,56894.0,0.50109]
[1725529973378,1.55479792,56895.0,56894.0,0.50109]
[1725529973612,1.58229836,56895.0,56894.0,0.49109]
[1725529973842,1.58229836,56895.0,56894.0,0.14109]
[1725529974062,1.58229836,56895.0,56894.0,0.39109]
[1725529974322,1.50532675,56895.0,56894.0,0.49109]
[1725529975902,1.50532675,56895.0,56894.0,0.48309]
[1725529976140,1.50532675,56895.0,56894.0,0.47509]
[1725529976365,1.50532675,56895.0,56894.0,0.48209]
[1725529976584,1.50532675,56895.0,56894.0,0.47509]
[1725529976823,1.50532813,56895.0,56894.0,0.48809]
[1725529977249,1.50532813,56895.0,56894.0,0.49809]
[1725529977484,1.58233155,56895.0,56894.0,0.49809]
[1725529977925,1.58233155,56895.0,56894.0,0.49209]
[1725529978141,1.58233155,56895.0,56894.0,0.49409]
[1725529978356,1.58233155,56895.0,56894.0,0.50009]
[1725529978853,1.58233155,56895.0,56894.0,0.49409]
[1725529979072,1.50532813,56895.0,56894.0,0.48509]
[1725529979287,1.50532813,56895.0,56894.0,0.49109]
[1725529979513,1.50532813,56895.0,56894.0,0.49609]
[1725529980842,1.50532813,56895.0,56894.0,0.48609]
[1725529981062,1.50532813,56895.0,56894.0,0.49609]
[1725529982413,1.50532813,56895.0,56894.0,0.48609]
[1725529984845,1.50187713,56895.0,56894.0,0.48609]
[1725529985322,1.44797497,56895.0,56894.0,0.48609]
[1725529985560,1.50187797,56895.0,56894.0,0.48609]
[1725529986014,1.50187797,56895.0,56894.0,0.47509]
[1725529986451,1.50187797,56895.0,56894.0,0.48309]
[1725529987613,1.50187797,56895.0,56894.0,0.47909]
[1725529988047,1.50187797,56895.0,56894.0,0.48309]
[1725529988532,1.70038893,56895.0,56894.0,0.48309]
[1725529988748,1.70038893,56895.0,56894.0,0.38309]
[1725529988749,1.7017993,56895.0,56894.0,0.38309]
[1725529989208,1.62497734,56895.0,56894.0,0.38309]
[1725529989423,1.44921534,56895.0,56894.0,0.37909]
[1725529989657,1.44921534,56895.0,56894.0,0.37509]
[1725529990125,1.44921534,56895.0,56894.0,0.35163]
[1725529991259,1.44921534,56895.0,56894.0,0.35263]
[1725529991848,1.44922541,56895.0,56894.0,0.35263]
[1725529992070,1.45222541,56895.0,56894.0,0.35363]
[1725529995140,1.39831234,56895.0,56894.0,0.35363]
[1725529995356,1.40931499,56895.0,56894.0,0.35363]
[1725529995574,1.43572136,56895.0,56894.0,0.35363]
[1725529995794,1.45222534,56895.0,56894.0,0.35363]
[1725529997152,1.45222534,56895.0,56894.0,0.37571]
[1725529997601,1.45222534,56895.0,56894.0,0.37471]
[1725529997602,1.44922534,56895.0,56894.0,0.37471]
[1725529998049,1.45222534,56895.0,56894.0,0.37371]
[1725529998287,1.4522253,56895.0,56894.0,0.37371]
[1725529998516,1.4492253,56895.0,56894.0,0.37371]
[1725529998751,1.4522253,56895.0,56894.0,0.37371]
[1725530001419,1.40931506,56895.0,56894.0,0.37371]
[1725530001640,1.45222567,56895.0,56894.0,0.37371]
[1725530002104,1.44922567,56895.0,56894.0,0.37371]
[1725530002762,1.45222567,56895.0,56894.0,0.37371]
[1725530003202,1.39831234,56895.0,56894.0,0.37371]
[1725530003424,2.32003295,56895.0,56894.0,0.02371]
[1725530003648,1.61698495,56895.0,56894.0,0.02371]
[1725530003884,1.70201433,56895.0,56894.0,0.02371]
[1725530004109,2.05353833,56895.0,56894.0,0.02371]
[1725530004338,2.05553833,56895.0,56894.0,0.02371]
[1725530005031,1.70401433,56895.0,56894.0,0.02371]
[1725530005467,1.62698767,56895.0,56894.0,0.02371]
[1725530006784,1.97851167,56895.0,56894.0,0.02371]
[1725530007490,1.62698767,56895.0,56894.0,0.02371]
[1725530009330,1.45122567,56895.0,56894.0,0.02371]
[1725530009773,1.62698767,56895.0,56894.0,0.02371]
[1725530011172,1.57307434,56895.0,56894.0,0.02371]
[1725530011400,1.62698967,56895.0,56894.0,0.02371]
[1725530012083,1.45122767,56895.0,56894.0,0.02371]
[1725530012520,1.62698967,56895.0,56894.0,0.02371]
[1725530014949,1.62498967,56895.0,56894.0,0.02371]
[1725530015170,1.62798967,56895.0,56894.0,0.02371]
[1725530016113,1.45222767,56895.0,56894.0,0.02371]
[1725530016770,1.44922767,56895.0,56894.0,0.02371]
[1725530017217,1.45422767,56895.0,56894.0,0.02371]
[1725530017435,1.45422265,56895.0,56894.0,0.02371]
[1725530020748,1.42671792,56895.0,56894.0,0.02371]
[1725530020963,1.44322141,56895.0,56894.0,0.02371]
[1725530021201,1.45422373,56895.0,56894.0,0.02371]
[1725530022763,1.26582373,56895.0,56894.0,0.37371]
[1725530022979,0.67071277,56895.0,56894.0,0.37371]
[1725530023203,0.67071277,56895.0,56894.0,0.47571]
[1725530023426,0.67071277,56895.0,56894.0,0.66501]
[1725530023643,0.67071277,56895.0,56894.0,0.840775]
[1725530023644,0.69821369,56895.0,56894.0,0.840775]
[1725530023865,0.69821369,56895.0,56894.0,0.66501]
[1725530024120,0.69821369,56895.0,56894.0,1.192305]
[1725530024559,0.67071277,56895.0,56894.0,1.543835]
[1725530025736,0.67071277,56895.0,56894.0,1.190305]
[1725530025949,0.67071277,56895.0,56894.0,0.66301]
[1725530026215,0.67071277,56895.0,56894.0,0.90246255]
[1725530027126,0.62780171,56895.0,56894.0,0.90246255]
[1725530027350,0.69710475,56895.0,56894.0,0.90246255]
[1725530027602,0.68170452,56895.0,56894.0,0.90246255]
[1725530027858,0.67070419,56895.0,56894.0,0.90246255]
[1725530028069,0.66570419,56895.0,56894.0,0.90246255]
[1725530029396,0.66770419,56895.0,56894.0,0.90246255]
[1725530030732,0.66770419,56895.0,56894.0,1.78128755]
[1725530030949,0.65670362,56895.0,56894.0,2.7988701]
[1725530031408,0.65670362,56895.0,56894.0,2.66473485]
[1725530031614,0.65670362,56895.0,56894.0,2.55941755]
[1725530032061,0.65670362,56895.0,56894.0,2.7988701]
[1725530032272,0.65670362,56895.0,56894.0,2.55941755]
[1725530032493,0.62830224,56895.0,56894.0,2.56841755]
[1725530032760,0.6546993,56895.0,56894.0,2.65536495]
[1725530032980,0.62830224,56895.0,56894.0,2.6463638]
[1725530033207,0.61180138,56895.0,56894.0,2.6473638]
[1725530033428,0.63819907,56895.0,56894.0,2.55941755]
[1725530033640,0.65469762,56895.0,56894.0,2.56741755]
[1725530033855,0.65469762,56895.0,56894.0,2.57641755]
[1725530035389,0.65469762,56895.0,56894.0,2.62902613]
[1725530038389,0.65469762,56895.0,56894.0,2.57641755]
[1725530039284,0.65469762,56895.0,56894.0,1.44675755]
[1725530039709,0.61180138,56895.0,56894.0,0.90592755]
[1725530039963,0.65470126,56895.0,56894.0,0.90592755]
[1725530040182,0.65470126,56895.0,56894.0,0.90792755]
[1725530040434,0.65470126,56895.0,56894.0,0.89792755]
[1725530040631,0.65470126,56895.0,56894.0,0.88892755]
[1725530040848,0.65470126,56895.0,56894.0,1.25745755]
[1725530041085,0.65470126,56895.0,56894.0,1.25945755]
[1725530041299,0.65470126,56895.0,56894.0,1.25045755]
[1725530041522,0.65470126,56895.0,56894.0,1.60198755]
[1725530041742,0.65470126,56895.0,56894.0,1.59998755]
[1725530042594,0.65470126,56895.0,56894.0,1.60898755]
[1725530043058,0.65470126,56895.0,56894.0,1.60098755]
[1725530043273,0.65570126,56895.0,56894.0,1.60998755]
[1725530043497,1.05210207,56895.0,56894.0,0.73116255]
[1725530043731,1.24020207,56895.0,56894.0,0.73116255]
[1725530043956,1.24020207,56895.0,56894.0,0.75469583]
[1725530047621,1.05210207,56895.0,56894.0,0.75469583]
[1725530048303,1.05210207,56895.0,56894.0,0.61101163]
[1725530048518,0.66670207,56895.0,56894.0,0.61101163]
[1725530048763,0.66670207,56895.0,56894.0,0.78877663]
[1725530048974,0.65570126,56895.0,56894.0,1.68163663]
[1725530050085,0.65570126,56895.0,56894.0,1.82525454]
[1725530051178,0.61280138,56895.0,56894.0,1.82525454]
[1725530051398,0.65570107,56895.0,56894.0,1.82525454]
[1725530053432,0.666701,56895.0,56894.0,1.82325454]
[1725530053879,0.65570107,56895.0,56894.0,2.17678454]
[1725530054344,0.61280138,56895.0,56894.0,2.17678454]
[1725530054579,0.65570099,56895.0,56894.0,2.17678454]
[1725530054788,0.65570094,56895.0,56894.0,2.17478454]
[1725530055266,0.65570094,56895.0,56894.0,2.17678454]
[1725530055983,0.65570094,56895.0,56894.0,2.22936911]
[1725530056425,0.65570094,56895.0,56894.0,2.03756911]
[1725530056655,0.65570094,56895.0,56894.0,1.98498454]
[1725530057096,0.65570094,56895.0,56894.0,1.63345454]
[1725530058927,0.84670094,56895.0,56894.0,1.63345454]
[1725530059675,0.65570094,56895.0,56894.0,1.63345454]
[1725530060349,0.65570094,56895.0,56894.0,1.28192454]
[1725530060585,0.61280138,56895.0,56894.0,1.28192454]
[1725530060800,0.63920146,56895.0,56894.0,1.28192454]
[1725530061019,0.65570151,56895.0,56894.0,1.28192454]
[1725530061462,0.65570151,56895.0,56894.0,1.63345454]
[1725530061697,0.65570151,56895.0,56894.0,1.33658262]
[1725530061915,0.65570151,56895.0,56894.0,1.68811262]
[1725530062394,0.65570151,56895.0,56894.0,1.88521262]
[1725530062846,0.65570151,56895.0,56894.0,1.83255454]
[1725530063750,0.61280138,56895.0,56894.0,1.83255454]
[1725530063970,0.65570063,56895.0,56894.0,1.83255454]
[1725530064169,0.65570063,56895.0,56894.0,2.4334708]
[1725530064450,0.65570063,56895.0,56894.0,2.19408454]
[1725530064682,0.65570063,56895.0,56894.0,2.2994007]
[1725530064868,0.65570063,56895.0,56894.0,2.55878696]
[1725530065092,0.61180138,56895.0,56894.0,2.54978696]
[1725530065321,0.61180138,56895.0,56894.0,2.4534708]
[1725530065470,0.61180138,56895.0,56894.0,2.21408454]
[1725530065681,0.61180138,56895.0,56894.0,2.20508454]
[1725530065682,0.65469756,56895.0,56894.0,2.20508454]
[1725530065889,0.62829991,56895.0,56894.0,2.19608454]
[1725530066214,0.62829991,56895.0,56894.0,2.21408454]
[1725530067319,0.62829991,56895.0,56894.0,2.34572974]
[1725530067490,0.62829991,56895.0,56894.0,2.4534708]
[1725530068376,0.62829991,56895.0,56894.0,2.34572974]
[1725530068645,0.34138866,56895.0,56894.0,2.31950322]
[1725530068866,0.32489013,56895.0,56894.0,2.12040322]
[1725530069081,0.34138848,56895.0,56894.0,2.12040322]
[1725530069535,0.34138848,56895.0,56894.0,2.01498454]
[1725530070004,0.34138848,56895.0,56894.0,1.97676705]
[1725530070222,0.34138848,56895.0,56894.0,1.87134837]
[1725530072265,0.34138848,56895.0,56894.0,1.87334837]
[1725530072496,0.34138848,56895.0,56894.0,1.77759828]
[1725530072719,0.34138848,56895.0,56894.0,1.87334837]
[1725530073596,0.34138848,56895.0,56894.0,1.97876503]
[1725530074062,0.34138848,56895.0,56894.0,1.87334837]
[1725530074770,0.34138848,56895.0,56894.0,1.97876182]
[1725530075220,0.08505216,56895.0,56894.0,1.97876217]
[1725530075439,0.06855381,56895.0,56894.0,1.97876217]
[1725530075683,0.08505184,56895.0,56894.0,1.97876217]
[1725530076377,0.08505184,56895.0,56894.0,1.96676217]
[1725530076618,0.27725184,56895.0,56894.0,1.50181837]
[1725530077069,0.27725184,56895.0,56894.0,0.70100828]
[1725530077299,0.27725184,56895.0,56894.0,0.39171]
[1725530077300,0.87036204,56895.0,56894.0,0.39171]
[1725530077524,0.89336204,56895.0,56894.0,0.39171]
[1725530077758,0.90436387,56895.0,56894.0,0.39171]
[1725530078005,0.90436387,56895.0,56894.0,0.38271]
[1725530078270,0.90436387,56895.0,56894.0,0.38871]
[1725530078525,0.88787159,56895.0,56894.0,0.38871]
[1725530078764,0.9043746,56895.0,56894.0,0.38271]
[1725530079455,0.9043746,56895.0,56894.0,0.47371]
[1725530079653,0.9043746,56895.0,56894.0,0.47471]
[1725530080203,0.9043746,56895.0,56894.0,0.47371]
[1725530080930,0.9063746,56895.0,56894.0,0.47371]
[1725530081163,0.69686164,56895.0,56894.0,0.47371]
[1725530084009,0.69686164,56895.0,56894.0,0.12371]
[1725530084243,1.08213638,56895.0,56894.0,0.02371]
[1725530084463,0.90637438,56895.0,56894.0,0.02371]
[1725530084948,1.08213638,56895.0,56894.0,0.02371]
[1725530085387,0.90637438,56895.0,56894.0,0.02371]
[1725530087007,0.90357312,56895.0,56894.0,0.02371]
[1725530087745,0.89257134,56895.0,56894.0,0.02371]
[1725530087977,0.87606991,56895.0,56894.0,0.02371]
[1725530088189,0.90357657,56895.0,56894.0,0.02371]
[1725530088646,0.90157657,56895.0,56894.0,0.02371]
[1725530089109,0.90257657,56895.0,56894.0,0.02371]
[1725530089355,0.90157657,56895.0,56894.0,0.02371]
[1725530089598,0.90257657,56895.0,56894.0,0.02371]
[1725530089816,0.90357657,56895.0,56894.0,0.02371]
[1725530090720,0.90257657,56895.0,56894.0,0.02371]
[1725530091172,0.9035765,56895.0,56894.0,0.02371]
[1725530093037,0.89257385,56895.0,56894.0,0.02371]
[1725530093733,0.50186289,56895.0,56894.0,0.199475]
[1725530094402,0.45895255,56895.0,56894.0,0.199475]
[1725530094626,0.47445342,56895.0,56894.0,0.199475]
[1725530094846,0.50185482,56895.0,56894.0,0.199475]
[1725530095080,0.50085482,56895.0,56894.0,0.199475]
[1725530095312,0.08325342,56895.0,56894.0,0.551005]
[1725530095779,0.08325342,56895.0,56894.0,0.207475]
[1725530096018,0.08325342,56895.0,56894.0,0.03171]
[1725530096245,0.1086556,56895.0,56894.0,0.03171]
[1725530096467,0.1086556,56895.0,56894.0,0.04071]
[1725530096699,0.4884556,56895.0,56894.0,0.04071]
[1725530097406,0.44555255,56895.0,56894.0,0.04071]
[1725530097635,0.48845669,56895.0,56894.0,0.04071]
[1725530100595,0.44555255,56895.0,56894.0,0.04071]
[1725530100866,0.48845685,56895.0,56894.0,0.04071]
[1725530101103,0.48845685,56895.0,56894.0,0.216475]
[1725530101328,0.48845685,56895.0,56894.0,0.568005]
[1725530101558,0.48845685,56895.0,56894.0,0.04071]
[1725530103176,0.44555255,56895.0,56894.0,0.04071]
[1725530103413,0.46205418,56895.0,56894.0,0.39071]
[1725530103640,0.48845706,56895.0,56894.0,0.39071]
[1725530103870,0.87657062,56895.0,56894.0,0.39071]
[1725530104791,0.13505966,56895.0,56894.0,0.566475]
[1725530106231,0.10865706,56895.0,56894.0,0.566475]
[1725530106910,0.10865706,56895.0,56894.0,0.918005]
[1725530107355,0.10865706,56895.0,56894.0,0.566475]
[1725530107606,0.10865706,56895.0,56894.0,1.552735]
[1725530107834,0.10865706,56895.0,56894.0,1.904265]
[1725530108067,0.10865706,56895.0,56894.0,1.369535]
[1725530108332,0.10865706,56895.0,56894.0,1.018005]
[1725530108553,0.10865706,56895.0,56894.0,0.666475]
[1725530108554,0.10865559,56895.0,56894.0,0.666475]
[1725530109699,0.09215466,56895.0,56894.0,0.666475]
[1725530109925,0.10865598,56895.0,56894.0,0.666475]
[1725530110408,0.10865598,56895.0,56894.0,1.018005]
[1725530110884,0.10865598,56895.0,56894.0,0.666475]
[1725530112971,0.10865426,56895.0,56894.0,0.666475]
[1725530113625,0.10865426,56895.0,56894.0,0.49071]
[1725530113628,0.28416522,56895.0,56894.0,0.14071]
[1725530113847,0.67106678,56895.0,56894.0,0.14071]
[1725530114292,0.67106678,56895.0,56894.0,0.04071]
[1725530114755,0.87476678,56895.0,56894.0,0.04071]
[1725530119007,0.82086351,56895.0,56894.0,0.04071]
[1725530119258,0.85826885,56895.0,56894.0,0.04071]
[1725530119478,0.87477121,56895.0,56894.0,0.04071]
[1725530119700,0.87575591,56895.0,56894.0,0.04071]
[1725530121797,0.87575591,56895.0,56894.0,0.06522537]
[1725530123870,0.5955191,56895.0,56894.0,0.06522537]
[1725530124092,0.60063643,56895.0,56894.0,0.06522537]
[1725530124791,0.41993643,56895.0,56894.0,0.24099037]
[1725530125012,0.41993643,56895.0,56894.0,0.06522537]
[1725530125506,0.01018518,56895.0,56894.0,0.59252037]
[1725530125739,0.0530901,56895.0,56894.0,0.94405037]
[1725530126214,0.02668707,56895.0,56894.0,0.94405037]
[1725530126438,0.02668707,56895.0,56894.0,1.39558037]
[1725530126439,0.01018518,56895.0,56894.0,1.39558037]
[1725530126654,0.01018518,56895.0,56894.0,1.58388037]
[1725530126887,0.01018518,56895.0,56894.0,1.63656425]
[1725530127320,0.01018518,56895.0,56894.0,1.63856425]
[1725530128414,0.01018518,56895.0,56894.0,1.58388037]
[1725530128636,0.01018518,56895.0,56894.0,1.63656425]
[1725530128901,0.01018518,56895.0,56894.0,1.63856425]
[1725530129562,0.026685,56895.0,56894.0,1.63656425]
[1725530129996,0.026685,56895.0,56894.0,1.58388037]
[1725530130254,0.026685,56895.0,56894.0,1.63656425]
[1725530130482,0.026685,56895.0,56894.0,1.63856425]
[1725530130767,0.01018518,56895.0,56894.0,1.63856425]
[1725530131002,0.42868465,56895.0,56894.0,0.16522537]
[1725530131259,0.42868465,56895.0,56894.0,0.04071]
[1725530131260,0.8195958,56895.0,56894.0,0.04071]
[1725530131491,1.97192159,56895.0,56894.0,0.04071]
[1725530132173,1.97192159,56895.0,56894.0,0.03271]
[1725530132617,1.97192159,56895.0,56894.0,0.03571]
[1725530132876,1.97192159,56895.0,56894.0,0.01363]
[1725530133098,1.97192159,56895.0,56894.0,0.00163]
[1725530133324,1.95642212,56895.0,56894.0,0.00163]
[1725530133542,1.97393982,56895.0,56894.0,0.00263]
[1725530133991,1.97193982,56895.0,56894.0,0.00163]
[1725530134212,1.97393982,56895.0,56894.0,0.00263]
[1725530134434,1.97593982,56895.0,56894.0,0.00363]
[1725530134650,1.97675482,56895.0,56894.0,0.00363]
[1725530134871,2.00426458,56895.0,56894.0,0.00363]
[1725530135702,2.00226458,56895.0,56894.0,0.00263]
[1725530136098,2.00426458,56895.0,56894.0,0.00363]
[1725530137372,1.97675383,56895.0,56894.0,0.00363]
[1725530138290,1.57131085,56895.0,56894.0,0.00363]
[1725530138528,0.85843012,56895.0,56894.0,0.00363]
[1725530139023,1.06170181,56895.0,56894.0,0.00363]
[1725530139293,1.03219212,56895.0,56894.0,0.00263]
[1725530139511,1.03019212,56895.0,56894.0,0.00163]
[1725530139745,1.41322581,56895.0,56894.0,0.00363]
[1725530140435,1.33179714,56895.0,56894.0,0.00363]
[1725530140658,1.38571823,56895.0,56894.0,0.00363]
[1725530141581,1.41322899,56895.0,56894.0,0.00363]
[1725530142034,1.38571823,56895.0,56894.0,0.00363]
[1725530144321,1.73724223,56895.0,56894.0,0.00363]
[1725530144559,1.97675594,56895.0,56894.0,0.00363]
[1725530144795,2.0042667,56895.0,56894.0,0.00363]
[1725530145020,1.76475299,56895.0,56894.0,0.00363]
[1725530145253,1.73724223,56895.0,56894.0,0.00363]
[1725530146934,2.0042667,56895.0,56894.0,0.00363]
[1725530147159,2.32827994,56895.0,56894.0,0.00363]
[1725530150910,2.27435885,56895.0,56894.0,0.00363]
[1725530151128,2.28536378,56895.0,56894.0,0.00363]
[1725530151352,2.3128761,56895.0,56894.0,0.00363]
[1725530151583,2.33928793,56895.0,56894.0,0.00363]
[1725530152252,2.69081193,56895.0,56894.0,0.00363]
[1725530152488,2.45129822,56895.0,56894.0,0.00363]
[1725530153178,2.7989352,56895.0,56894.0,0.00363]
[1725530153421,2.63659822,56895.0,56894.0,0.00363]
[1725530153676,2.87611193,56895.0,56894.0,0.00363]
[1725530154387,2.87611774,56895.0,56894.0,0.00363]
[1725530155687,4.13331774,56895.0,56894.0,0.00363]
[1725530157066,3.91457708,56895.0,56894.0,0.00363]